bitfinex-derivatives/quotes_ETHF0:USTF0_20230403
["timestamp","ask_amount","ask_price","bid_price","bid_amount"]
[1680495742771,0.58934629,1775.2,1775.1,0.842]
[1680495742976,1.47519055,1775.2,1775.1,0.842]
[1680495743381,0.88584426,1775.2,1775.1,0.842]
[1680495744079,1.94942811,1775.2,1775.1,0.842]
[1680495744278,1.35990051,1775.2,1775.1,0.842]
[1680495746774,1.35990051,1775.2,1775.1,1.842]
[1680495751582,1.35685116,1775.2,1775.1,0.842]
[1680495755480,1.35685116,1775.2,1775.1,1.43207417]
[1680495756081,1.35685116,1775.2,1775.1,0.842]
[1680495758987,1.35685116,1775.2,1775.1,1.43207417]
[1680495771596,1.94707322,1775.2,1775.1,1.43207417]
[1680495771801,1.06427831,1775.2,1775.1,2.31755577]
[1680495772196,1.06427831,1775.2,1775.1,2.31778701]
[1680495774202,0.47405625,1775.2,1775.1,1.7274816]
[1680495782809,0.47405625,1775.2,1775.1,2.7274816]
[1680495783520,0.47405625,1775.2,1775.1,1.7274816]
[1680495785019,0.47405625,1775.2,1775.1,2.7274816]
[1680495786319,0.47405625,1775.2,1775.1,3.02360263]
[1680495786517,0.47405625,1775.2,1775.1,0.842]
[1680495786822,0.47405625,1775.2,1775.1,3.02360263]
[1680495787422,1.06447616,1775.2,1775.1,3.02360263]
[1680495787620,1.06447616,1775.2,1775.1,3.44537151]
[1680495788619,1.18121007,1775.4,1775.1,4.28937151]
[1680495788825,1.18121007,1775.5,1775.3,2.56516733]
[1680495789017,1.18121007,1775.5,1775.4,1.43476631]
[1680495790023,1.18121007,1775.6,1775.4,2.43476631]
[1680495790215,1.18121007,1775.6,1775.5,0.838]
[1680495790819,1.18121007,1775.6,1775.5,1.42876631]
[1680495791913,1.18121007,1775.7,1775.5,1.42876631]
[1680495792117,1.18121007,1775.7,1775.6,1.839]
[1680495795518,1.18121007,1775.8,1775.6,1.839]
[1680495795719,1.18121007,1775.8,1775.7,0.844]
[1680495795926,4.94692003,1775.9,1775.7,0.844]
[1680495796122,4.94692003,1775.9,1775.8,0.839]
[1680495798329,4.38901007,1775.9,1775.8,0.839]
[1680495801323,1.18121007,1775.9,1775.8,0.839]
[1680495801824,2.18121007,1776.0,1775.8,0.839]
[1680495802025,2.18121007,1776.0,1775.8,0.837]
[1680495802816,1.18121007,1776.0,1775.8,0.837]
[1680495804128,0.30447,1775.9,1775.8,0.837]
[1680495809828,1.18121007,1776.0,1775.8,0.837]
[1680495811728,0.88335391,1775.9,1775.8,0.837]
[1680495819133,1.04555404,1775.9,1775.8,0.837]
[1680495820439,1.04555404,1775.9,1775.8,0.839]
[1680495831354,0.16220013,1775.9,1775.8,0.839]
[1680495831654,1.3434102,1775.9,1775.8,0.839]
[1680495832952,0.16220013,1775.9,1775.8,0.839]
[1680495833450,1.3434102,1775.9,1775.8,0.839]
[1680495834054,1.3434102,1775.9,1775.8,4.0468]
[1680495835753,1.3434102,1775.9,1775.8,4.63756631]
[1680495841452,0.16220013,1775.9,1775.8,4.63756631]
[1680495842465,1.34281578,1775.9,1775.8,4.63756631]
[1680495843563,0.16220013,1775.9,1775.8,4.63756631]
[1680495846368,1.34285692,1775.9,1775.8,4.63756631]
[1680495846555,1.34285692,1775.9,1775.8,5.52373364]
[1680495847867,1.34285692,1775.9,1775.8,4.63756631]
[1680495848464,1.34285692,1775.9,1775.8,5.52373364]
[1680495848756,1.34285692,1775.9,1775.8,4.63756631]
[1680495849662,0.16220013,1775.9,1775.8,4.63756631]
[1680495850762,1.34294402,1775.9,1775.8,5.52373364]
[1680495851261,0.16220013,1775.9,1775.8,4.63756631]
[1680495851769,0.16220013,1775.9,1775.8,5.52373364]
[1680495852769,1.34305071,1775.9,1775.8,4.93296733]
[1680495855064,1.34305071,1775.9,1775.8,0.88616733]
[1680495855270,18.49575217,1775.9,1775.7,0.5908982]
[1680495855461,1.47585835,1775.8,1775.7,0.5908982]
[1680495855662,5.76041284,1775.9,1775.7,0.5908982]
[1680495855869,1.47585835,1775.8,1775.7,0.5908982]
[1680495856570,5.68985848,1775.9,1775.7,0.5908982]
[1680495856867,1.18064014,1775.8,1775.7,0.5908982]
[1680495857073,1.47585835,1775.8,1775.7,0.5908982]
[1680495859878,5.68985848,1775.9,1775.7,0.5908982]
[1680495860071,1.47585835,1775.8,1775.7,0.5908982]
[1680495860267,5.68985848,1775.9,1775.7,0.5908982]
[1680495860474,1.47585835,1775.8,1775.7,0.5908982]
[1680495860978,5.68985848,1775.9,1775.7,0.5908982]
[1680495861178,1.47585835,1775.8,1775.7,0.5908982]
[1680495861675,5.68985848,1775.9,1775.7,0.5908982]
[1680495863783,4.84585848,1775.9,1775.7,1.4348982]
[1680495863982,1.18026794,1775.8,1775.7,1.4348982]
[1680495864177,1.41197161,1775.8,1775.7,1.4348982]
[1680495869990,1.41197161,1775.8,1775.7,1.73016733]
[1680495870592,0.23170367,1775.8,1775.7,1.73016733]
[1680495870890,1.18026794,1775.9,1775.7,4.93796733]
[1680495871093,1.18026794,1775.9,1775.8,0.59062699]
[1680495871288,1.18026794,1775.9,1775.8,1.59062699]
[1680495872084,1.18026794,1775.9,1775.8,2.42962699]
[1680495873595,1.18026794,1775.9,1775.8,1.42962699]
[1680495873795,1.18026794,1775.9,1775.8,2.42962699]
[1680495875395,1.18026794,1775.9,1775.8,3.31579432]
[1680495875794,1.18026794,1775.9,1775.8,2.42962699]
[1680495876096,1.18026794,1775.9,1775.8,3.31579432]
[1680495876497,1.18026794,1775.9,1775.8,2.42962699]
[1680495876693,1.18026794,1775.9,1775.8,3.31579432]
[1680495876999,1.18026794,1775.9,1775.8,1.42962699]
[1680495877193,1.18026794,1775.9,1775.8,2.31579432]
[1680495877589,1.18026794,1775.9,1775.8,1.42962699]
[1680495877796,1.18026794,1775.9,1775.8,2.31579432]
[1680495877999,1.18026794,1775.9,1775.8,1.42962699]
[1680495878497,1.18026794,1775.9,1775.8,2.31579432]
[1680495878687,1.18026794,1775.9,1775.8,1.42962699]
[1680495879397,1.41251763,1775.9,1775.8,1.42962699]
[1680495880301,0.23224969,1775.9,1775.8,2.31579432]
[1680495880594,1.41251763,1775.9,1775.8,1.42962699]
[1680495880791,1.41251763,1775.9,1775.8,2.31579432]
[1680495881297,0.23224969,1775.9,1775.8,2.31579432]
[1680495882093,0.23224969,1775.9,1775.8,2.31479432]
[1680495883800,0.23224969,1775.9,1775.8,1.72416733]
[1680495883999,1.11715618,1775.9,1775.8,1.72351846]
[1680495884196,0.23224969,1775.9,1775.8,2.01960263]
[1680495884594,0.23224969,1775.9,1775.8,3.01960263]
[1680495885804,0.23224969,1775.9,1775.8,2.72352099]
[1680495886696,0.23224969,1775.9,1775.8,1.838]
[1680495886896,0.23224969,1775.9,1775.8,2.7233529]
[1680495887296,0.23224969,1775.9,1775.8,1.838]
[1680495887604,0.23224969,1775.9,1775.8,2.72334574]
[1680495888798,0.23224969,1775.9,1775.8,1.838]
[1680495889901,0.23224969,1775.9,1775.8,2.72308807]
[1680495891013,0.23224969,1775.9,1775.8,2.72308331]
[1680495891301,0.23224969,1775.9,1775.8,2.72308907]
[1680495892299,0.88490649,1776.0,1775.8,2.72308907]
[1680495892500,1.73395954,1776.2,1776.0,1.0]
[1680495892501,0.88490649,1776.1,1776.0,1.0]
[1680495892695,0.8842677,1776.1,1776.0,1.842]
[1680495892895,1.73395954,1776.2,1776.0,0.842]
[1680495893097,0.88426843,1776.1,1776.0,0.842]
[1680495893306,0.88426519,1776.1,1776.0,0.842]
[1680495893504,1.73395954,1776.2,1776.0,0.842]
[1680495893900,0.88424544,1776.1,1776.0,0.842]
[1680495894301,0.92815591,1776.1,1776.0,0.842]
[1680495897916,0.92815591,1776.1,1776.0,1.842]
[1680495898117,0.92815591,1776.1,1776.0,0.842]
[1680495905727,1.18026794,1776.2,1776.0,2.27598155]
[1680495905728,0.88405837,1776.2,1776.0,2.27598155]
[1680495905919,0.88405837,1776.3,1776.1,4.63454176]
[1680495906132,0.88405837,1776.3,1776.2,0.844]
[1680495906625,0.88405837,1776.3,1776.2,1.844]
[1680495906826,0.88405837,1776.3,1776.2,0.844]
[1680495907227,0.88405837,1776.3,1776.2,1.688]
[1680495908738,1.4733705,1776.3,1776.2,1.688]
[1680495909328,0.58931213,1776.3,1776.2,1.688]
[1680495913527,0.88405837,1776.4,1776.2,1.688]
[1680495913528,1.4733705,1776.4,1776.2,2.27774176]
[1680495913728,0.88405837,1776.4,1776.3,4.0468]
[1680495915138,1.47320563,1776.4,1776.3,4.0468]
[1680495916041,0.58914726,1776.4,1776.3,4.0468]
[1680495916239,1.47320563,1776.4,1776.3,4.0468]
[1680495916841,1.47326594,1776.4,1776.3,4.0468]
[1680495917039,0.88405837,1776.4,1776.3,4.0468]
[1680495917741,0.88405837,1776.4,1776.3,0.839]
[1680495918935,0.58923303,1776.4,1776.3,0.839]
[1680495919129,0.58923303,1776.4,1776.3,4.09697009]
[1680495919940,0.58923303,1776.4,1776.3,0.88917009]
[1680495920636,0.58923303,1776.5,1776.3,4.68671185]
[1680495920833,0.58923303,1776.5,1776.3,3.84771185]
[1680495921233,0.58923303,1776.5,1776.4,1.0]
[1680495921434,1.47307343,1776.6,1776.5,1.684]
[1680495921638,1.47307343,1776.6,1776.5,4.8928]
[1680495921835,0.88405837,1776.6,1776.5,4.8928]
[1680495922039,1.47311211,1776.6,1776.5,4.8928]
[1680495922230,0.58905374,1776.6,1776.5,4.8928]
[1680495931245,2.03842626,1776.7,1776.5,4.8928]
[1680495931444,2.03842626,1776.7,1776.6,0.844]
[1680495931750,1.44937252,1776.7,1776.6,0.844]
[1680495931946,2.03805709,1776.7,1776.6,0.844]
[1680495932151,1.44937252,1776.7,1776.6,0.844]
[1680495932547,1.44937252,1776.7,1776.6,0.88883466]
[1680495932754,2.03808824,1776.7,1776.6,0.88883466]
[1680495933649,1.15402987,1776.7,1776.6,0.88883466]
[1680495934053,2.03808824,1776.7,1776.6,0.88883466]
[1680495936250,1.44937252,1776.7,1776.6,0.88883466]
[1680495936556,4.65717252,1776.7,1776.6,0.04483466]
[1680495936957,5.65717252,1776.7,1776.6,0.04483466]
[1680495937856,5.95338209,1776.7,1776.6,0.04483466]
[1680495940256,4.95338209,1776.7,1776.6,0.04483466]
[1680495948760,5.95338209,1776.7,1776.6,0.04483466]
[1680495949260,5.95177496,1776.7,1776.6,0.04483466]
[1680495949462,4.77311415,1776.7,1776.6,0.04483466]
[1680495949655,3.77311415,1776.7,1776.6,0.04483466]
[1680495950049,4.77311415,1776.7,1776.6,0.04483466]
[1680495950255,4.2078,1776.7,1776.6,0.04483466]
[1680495950760,4.38646089,1776.7,1776.6,0.04483466]
[1680495950958,4.68365835,1776.7,1776.6,0.04483466]
[1680495952858,5.68365835,1776.7,1776.6,0.04483466]
[1680495953863,5.25179542,1776.7,1776.6,0.04483466]
[1680495955265,5.94984621,1776.7,1776.6,0.04483466]
[1680495956567,5.25179542,1776.7,1776.6,0.04483466]
[1680495957059,6.94984624,1776.7,1776.6,0.04483466]
[1680495957264,6.94870675,1776.7,1776.6,0.04483466]
[1680495957566,20.45624639,1776.7,1776.6,0.0438945]
[1680495957765,19.45624639,1776.7,1776.6,0.0438945]
[1680495958263,17.98155026,1776.7,1776.5,0.841]
[1680495958560,1.0,1776.6,1776.5,0.841]
[1680495958967,6.25062619,1776.7,1776.5,0.88484872]
[1680495959167,1.47468912,1776.6,1776.5,0.88484872]
[1680495959371,3.172772,1776.6,1776.5,0.88484872]
[1680495959670,2.172772,1776.6,1776.5,0.88484872]
[1680495959871,1.47468912,1776.6,1776.5,0.88484872]
[1680495960473,2.17276869,1776.6,1776.5,0.88484872]
[1680495961072,1.47468912,1776.6,1776.5,0.88484872]
[1680495961366,16.68077017,1776.6,1776.5,0.88484872]
[1680495961573,15.68077017,1776.6,1776.5,0.88484872]
[1680495961870,1.47468912,1776.6,1776.5,0.88484872]
[1680495962067,1.47468912,1776.6,1776.5,0.04384872]
[1680495962266,2.17277258,1776.6,1776.5,0.04384872]
[1680495962767,15.68071266,1776.6,1776.5,0.04384872]
[1680495962965,15.68066512,1776.6,1776.5,0.04384872]
[1680495964567,15.049976,1776.6,1776.5,0.04384872]
[1680495964969,15.049976,1776.6,1776.3,0.58974176]
[1680495965158,4.68306736,1776.4,1776.3,0.58974176]
[1680495965361,3.2078,1776.4,1776.3,0.58974176]
[1680495965761,3.2078,1776.4,1776.2,2.31883083]
[1680495965968,2.17998609,1776.3,1776.2,2.31883083]
[1680495966364,2.17998609,1776.3,1776.2,2.31949913]
[1680495966565,1.0,1776.3,1776.2,1.72908907]
[1680495966764,2.17998609,1776.3,1776.2,2.31950966]
[1680495966965,3.02398609,1776.3,1776.2,0.59042059]
[1680495967167,3.02398609,1776.3,1776.1,0.59042059]
[1680495967168,4.15626736,1776.3,1776.1,0.59042059]
[1680495967363,5.23162065,1776.2,1776.1,0.59042059]
[1680495967571,5.63444164,1776.2,1776.0,0.59042059]
[1680495967770,1.8841144,1776.1,1776.0,0.59042059]
[1680495968274,1.8841144,1776.1,1775.9,1.47550966]
[1680495968472,4.68131631,1776.0,1775.9,0.59042059]
[1680495968865,3.79720191,1776.0,1775.9,0.59042059]
[1680495971669,3.2078,1776.0,1775.8,2.31350966]
[1680495971977,3.79720191,1776.0,1775.8,1.42842059]
[1680495972170,3.79720191,1776.0,1775.9,0.839]
[1680495973774,3.2078,1776.0,1775.9,0.839]
[1680495974173,3.79720191,1776.0,1775.9,0.839]
[1680495974975,3.79636824,1776.0,1775.9,0.83165409]
[1680495975573,3.2078,1776.0,1775.9,0.83165409]
[1680495977678,3.30968376,1776.0,1775.9,0.83165409]
[1680495979879,0.10188376,1776.0,1775.9,0.83165409]
[1680495983382,0.10188376,1776.0,1775.9,0.842]
[1680495983577,0.10188376,1776.0,1775.9,1.842]
[1680495983777,5.24280142,1776.2,1775.9,1.842]
[1680495983979,5.24280142,1776.2,1776.1,0.839]
[1680495984187,4.65423318,1776.2,1776.1,0.839]
[1680495984378,5.24242313,1776.2,1776.1,0.839]
[1680495984580,4.35830873,1776.2,1776.1,0.839]
[1680495985289,5.24242313,1776.2,1776.1,0.839]
[1680495985585,4.35830873,1776.2,1776.1,0.839]
[1680495989880,4.35830873,1776.2,1775.9,1.838]
[1680495990086,5.24242313,1776.2,1775.9,1.838]
[1680495990288,4.35830873,1776.2,1775.9,1.838]
[1680495990585,5.24242313,1776.2,1775.9,1.838]
[1680495991993,0.58818995,1776.1,1775.9,1.838]
[1680495992682,0.10243597,1776.0,1775.9,1.838]
[1680495993088,0.10243597,1776.0,1775.9,0.838]
[1680495995991,3.31023597,1776.0,1775.8,0.59042059]
[1680495996183,3.89842592,1776.0,1775.7,2.31950966]
[1680495996590,3.31023597,1776.0,1775.8,0.59042059]
[1680495996790,3.89842592,1776.0,1775.7,3.31950966]
[1680495996991,3.89842592,1776.0,1775.7,2.31950966]
[1680495997194,3.89842592,1776.0,1775.8,0.59042059]
[1680495997491,3.89842592,1776.0,1775.7,3.31950966]
[1680495997788,3.89842592,1776.0,1775.7,2.31950966]
[1680495998893,3.89842592,1776.0,1775.8,0.59042059]
[1680496000791,2.7281144,1775.9,1775.6,0.59042059]
[1680496001096,0.58860837,1775.8,1775.7,0.59042059]
[1680496001292,2.31672277,1775.9,1775.7,0.59042059]
[1680496001495,0.58860837,1775.8,1775.7,0.59042059]
[1680496001795,0.58860837,1775.8,1775.6,2.47550966]
[1680496002002,0.58860837,1775.8,1775.6,2.31450966]
[1680496002295,2.30972277,1775.9,1775.6,2.31450966]
[1680496002887,2.30972277,1775.9,1775.7,0.59042059]
[1680496003098,2.30972277,1775.9,1775.6,2.31450966]
[1680496003287,0.58860837,1775.8,1775.7,0.59042059]
[1680496003797,0.58860837,1775.8,1775.6,2.31450966]
[1680496004300,3.79640837,1775.8,1775.6,2.31450966]
[1680496004492,3.79640837,1775.8,1775.7,0.59042059]
[1680496004691,3.79640837,1775.8,1775.6,2.31450966]
[1680496005294,3.79640837,1775.8,1775.7,0.59042059]
[1680496007801,3.97808057,1775.8,1775.7,0.59042059]
[1680496011604,4.2735866,1775.8,1775.7,0.59042059]
[1680496011904,4.2735866,1775.8,1775.7,1.47550966]
[1680496012602,0.77094539,1775.8,1775.7,0.88508907]
[1680496014999,1.65503767,1775.8,1775.7,1.47527956]
[1680496015205,1.65503771,1775.8,1775.7,0.88508907]
[1680496015605,4.2735866,1775.8,1775.7,0.59019044]
[1680496020007,4.26716855,1775.8,1775.7,0.59019044]
[1680496022210,5.10416855,1775.8,1775.7,0.59019044]
[1680496025609,5.10416855,1775.8,1775.6,1.47527951]
[1680496025809,0.58890193,1775.7,1775.6,1.47527951]
[1680496026113,0.77043446,1775.7,1775.6,1.47507951]
[1680496026411,0.77043446,1775.7,1775.6,1.47506503]
[1680496026612,0.77043446,1775.7,1775.6,0.88508907]
[1680496027114,0.18153253,1775.7,1775.6,0.88508907]
[1680496027409,0.77043446,1775.7,1775.6,0.88508907]
[1680496027712,0.18153253,1775.7,1775.6,0.88508907]
[1680496027912,0.77043446,1775.7,1775.6,0.88508907]
[1680496028909,0.18153253,1775.7,1775.6,0.88508907]
[1680496029211,0.77043446,1775.7,1775.6,0.88508907]
[1680496029416,0.18153253,1775.7,1775.6,0.88508907]
[1680496032114,0.18153253,1775.7,1775.6,1.72208907]
[1680496033213,0.77043446,1775.7,1775.6,1.72208907]
[1680496033414,0.18153253,1775.7,1775.6,1.72208907]
[1680496033614,0.77043446,1775.7,1775.6,1.72208907]
[1680496034611,0.77043446,1775.7,1775.6,0.88508907]
[1680496034814,0.18153253,1775.7,1775.6,6.07240263]
[1680496035014,0.07411502,1775.7,1775.6,7.07240263]
[1680496035210,0.07411502,1775.7,1775.6,7.51270953]
[1680496035514,0.07411502,1775.7,1775.6,7.07240263]
[1680496035712,0.07411502,1775.7,1775.6,7.51278218]
[1680496037808,0.07411502,1775.7,1775.6,7.51177327]
[1680496038008,0.07411502,1775.7,1775.6,7.51178399]
[1680496040520,0.07411502,1775.7,1775.6,6.33117955]
[1680496041620,0.07411502,1775.7,1775.6,7.80276849]
[1680496042010,0.03337246,1775.7,1775.6,7.80276849]
[1680496045823,0.62227439,1775.7,1775.6,7.80276849]
[1680496046826,0.03337246,1775.7,1775.6,7.80276849]
[1680496052040,0.03337246,1775.7,1775.6,6.96376849]
[1680496052636,0.03337246,1775.7,1775.6,5.96376849]
[1680496059144,0.03337246,1775.7,1775.6,6.51881681]
[1680496064749,0.03337246,1775.7,1775.6,7.36181681]
[1680496066749,0.03337246,1775.7,1775.6,5.96276849]
[1680496066950,0.62227439,1775.7,1775.6,1.28337955]
[1680496067157,0.62227439,1775.7,1775.6,1.18128585]
[1680496067451,0.62227439,1775.7,1775.5,2.02228585]
[1680496067452,4.12528686,1775.7,1775.5,2.02228585]
[1680496067651,0.58952933,1775.6,1775.5,2.02228585]
[1680496067840,0.58952933,1775.6,1775.5,2.46313689]
[1680496068049,0.63007001,1775.6,1775.5,2.46313689]
[1680496074855,0.63007001,1775.6,1775.5,2.46613689]
[1680496080661,0.04054068,1775.6,1775.5,2.46613689]
[1680496080960,4.68144373,1775.7,1775.5,2.46613689]
[1680496081266,4.68144373,1775.7,1775.6,0.88576871]
[1680496081459,0.58952933,1775.7,1775.6,1.18128585]
[1680496082164,0.58952933,1775.7,1775.6,2.02328585]
[1680496082457,0.58952933,1775.7,1775.6,0.842]
[1680496082853,0.63061337,1775.7,1775.6,0.842]
[1680496085562,0.63061337,1775.7,1775.6,2.02328585]
[1680496086766,0.63061337,1775.7,1775.6,0.842]
[1680496089865,0.63061337,1775.7,1775.6,2.02328585]
[1680496095473,0.73061337,1775.7,1775.6,2.02328585]
[1680496097074,0.73061337,1775.7,1775.6,0.842]
[1680496097776,0.73061337,1775.7,1775.6,2.02328585]
[1680496098771,0.73061337,1775.7,1775.6,0.842]
[1680496099373,1.61472777,1775.7,1775.6,0.842]
[1680496099666,1.61472777,1775.7,1775.6,2.02328585]
[1680496100067,1.61472777,1775.7,1775.6,0.842]
[1680496100469,1.61472777,1775.7,1775.6,2.02328585]
[1680496101476,0.73061337,1775.7,1775.6,2.02328585]
[1680496102180,0.73061337,1775.7,1775.6,1.18128585]
[1680496102771,1.61472777,1775.7,1775.6,1.18128585]
[1680496105179,1.02519844,1775.7,1775.6,1.18128585]
[1680496105676,1.61472763,1775.7,1775.6,1.18128585]
[1680496105877,1.02519844,1775.7,1775.6,1.18128585]
[1680496112779,1.02519844,1775.7,1775.6,1.62227499]
[1680496135707,0.98508404,1775.7,1775.6,1.62227499]
[1680496135898,0.844,1775.6,1775.5,1.18231507]
[1680496136097,17.67944291,1775.6,1775.5,1.47810566]
[1680496136301,18.37789923,1775.6,1775.5,0.59120426]
[1680496136600,16.90263187,1775.6,1775.4,0.59120426]
[1680496136908,19.74096863,1775.5,1775.4,0.59120426]
[1680496137601,18.26643187,1775.5,1775.4,0.59120426]
[1680496138009,4.0518,1775.5,1775.2,1.47810566]
[1680496138210,4.68008533,1775.3,1775.2,1.47810566]
[1680496139206,3.79671413,1775.3,1775.2,0.8869014]
[1680496139596,3.79671413,1775.3,1775.2,0.59035514]
[1680496142310,3.79671413,1775.3,1775.1,2.31525654]
[1680496142506,3.79671413,1775.3,1775.2,0.59035514]
[1680496142906,3.94679779,1775.3,1775.2,0.59035514]
[1680496144506,3.94679779,1775.3,1775.1,2.31525654]
[1680496145211,3.94679779,1775.3,1775.1,1.42835514]
[1680496145410,3.94679779,1775.3,1775.1,2.31525654]
[1680496145812,3.94679779,1775.3,1775.1,1.42835514]
[1680496148016,3.35788366,1775.3,1775.1,1.42835514]
[1680496150616,3.35788366,1775.3,1775.1,0.838]
[1680496157521,3.4660733,1775.3,1775.1,0.838]
[1680496162027,3.4660733,1775.3,1775.1,0.844]
[1680496172037,3.4660733,1775.3,1775.1,0.842]
[1680496173440,4.05498743,1775.3,1775.1,0.842]
[1680496175545,4.05498743,1775.3,1775.1,1.43235514]
[1680496175846,4.05498743,1775.3,1775.2,0.839]
[1680496176840,4.05498743,1775.3,1775.2,0.739]
[1680496177237,4.05498743,1775.3,1775.2,1.739]
[1680496177541,0.84718743,1775.3,1775.2,1.739]
[1680496177740,0.84718743,1775.3,1775.2,2.32935514]
[1680496181748,1.43610303,1775.3,1775.2,2.92131507]
[1680496182141,1.43610303,1775.3,1775.2,3.02631507]
[1680496182338,0.2582733,1775.3,1775.2,3.02631507]
[1680496182538,1.43610303,1775.3,1775.2,1.844]
[1680496182751,1.43610303,1775.3,1775.2,0.844]
[1680496182945,1.43610303,1775.3,1775.2,1.73068271]
[1680496183546,1.43610303,1775.3,1775.2,0.844]
[1680496184253,1.43610303,1775.3,1775.2,1.73069154]
[1680496184450,4.64390303,1775.3,1775.2,1.73069154]
[1680496185254,4.64390303,1775.3,1775.2,0.844]
[1680496187653,1.43610303,1775.3,1775.2,0.844]
[1680496188057,1.43610303,1775.3,1775.2,2.02631507]
[1680496188655,1.43610303,1775.3,1775.2,0.844]
[1680496188857,1.14283216,1775.3,1775.2,2.02631507]
[1680496190159,1.14283223,1775.3,1775.2,2.02631507]
[1680496190358,1.14283223,1775.3,1775.2,10.94081764]
[1680496190660,0.58979994,1775.4,1775.2,11.78481764]
[1680496190859,0.58979994,1775.5,1775.3,10.20921294]
[1680496191160,0.58979994,1775.5,1775.4,7.07075586]
[1680496191363,1.47435887,1775.6,1775.4,7.07075586]
[1680496191560,0.58979994,1775.5,1775.4,5.38875586]
[1680496191756,1.47435887,1775.6,1775.4,7.06875586]
[1680496191957,1.47435887,1775.6,1775.5,3.56770495]
[1680496192658,0.58979994,1775.6,1775.5,3.56770495]
[1680496193461,0.58979994,1775.6,1775.5,4.15786945]
[1680496193664,0.58979994,1775.6,1775.5,3.56770495]
[1680496194958,0.58979994,1775.6,1775.5,3.84368299]
[1680496196961,1.47435887,1775.7,1775.5,3.84368299]
[1680496197162,1.47435887,1775.7,1775.6,0.837]
[1680496198571,0.58979994,1775.7,1775.6,0.837]
[1680496199267,1.47435887,1775.7,1775.6,0.837]
[1680496199667,0.58979994,1775.7,1775.6,1.678]
[1680496199865,0.58979994,1775.8,1775.6,6.36145076]
[1680496200072,0.58979994,1775.8,1775.7,3.27194581]
[1680496200371,0.58979994,1775.9,1775.7,3.27194581]
[1680496200573,0.58979994,1775.9,1775.8,0.839]
[1680496203070,4.68215887,1776.0,1775.8,0.839]
[1680496203276,4.68215887,1776.0,1775.9,0.844]
[1680496204178,4.68215887,1776.0,1775.9,0.839]
[1680496204872,3.79759994,1776.0,1775.9,0.839]
[1680496212085,3.79759994,1776.0,1775.9,0.838]
[1680496221994,3.79759994,1776.0,1775.9,0.844]
[1680496225292,4.68215887,1776.0,1775.9,0.844]
[1680496225484,3.79759994,1776.0,1775.9,0.844]
[1680496226593,4.68215887,1776.0,1775.9,0.844]
[1680496226796,4.09235893,1776.0,1775.9,0.844]
[1680496232587,3.2078,1776.0,1775.9,0.844]
[1680496232791,4.38562973,1776.0,1775.9,0.844]
[1680496233399,3.2078,1776.0,1775.9,0.844]
[1680496234197,4.38562973,1776.0,1775.9,0.844]
[1680496241006,3.2078,1776.0,1775.9,0.844]
[1680496242911,4.68008717,1776.0,1775.9,0.844]
[1680496244509,18.1923737,1776.0,1775.9,0.844]
[1680496244700,18.89068372,1776.0,1775.9,1.43394581]
[1680496248914,18.89068372,1776.0,1775.9,1.42878451]
[1680496261024,18.88799103,1776.0,1775.9,1.42878451]
[1680496261618,5.3757045,1776.0,1775.9,1.42878451]
[1680496261826,4.67739448,1776.0,1775.9,2.31448946]
[1680496262921,4.67739448,1776.0,1775.9,1.42878451]
[1680496263622,4.67739448,1776.0,1775.9,2.31448946]
[1680496264419,4.68739448,1776.0,1775.9,2.31559064]
[1680496267915,1.48228717,1776.0,1775.9,2.31559064]
[1680496268117,0.01,1776.0,1775.9,1.72454365]
[1680496269025,0.01,1776.0,1775.9,2.31546611]
[1680496269227,0.01,1776.0,1775.9,1.72454365]
[1680496269725,0.01,1776.0,1775.9,2.31546612]
[1680496269926,0.01,1776.0,1775.9,1.72454365]
[1680496270324,1.18895944,1776.0,1775.9,1.72454365]
[1680496270524,1.18890491,1776.0,1775.9,2.31546606]
[1680496270718,0.01,1776.0,1775.9,2.31546606]
[1680496270917,1.18890499,1776.0,1775.9,2.31546606]
[1680496271122,1.18890499,1776.0,1775.9,1.72454365]
[1680496271718,1.18890499,1776.0,1775.9,2.31543707]
[1680496271932,1.18890499,1776.0,1775.9,1.72454365]
[1680496272133,1.18890499,1776.0,1775.9,2.31543684]
[1680496273630,1.18890499,1776.0,1775.9,2.31541414]
[1680496273834,1.18890499,1776.0,1775.9,2.31541428]
[1680496274733,1.18890499,1776.0,1775.9,1.47657558]
[1680496279034,1.18890499,1776.0,1775.9,0.88570495]
[1680496279721,1.18890499,1776.0,1775.9,1.47653229]
[1680496280128,1.18890499,1776.0,1775.9,2.56970495]
[1680496280333,1.48359698,1776.0,1775.9,3.28046923]
[1680496280636,1.48359698,1776.0,1775.9,4.28046923]
[1680496280834,0.89415792,1776.0,1775.9,2.86495586]
[1680496281334,0.89415792,1776.0,1775.9,1.684]
[1680496281633,0.89415792,1776.0,1775.9,2.56986326]
[1680496282133,0.89415792,1776.0,1775.9,1.684]
[1680496282730,0.89415792,1776.0,1775.9,2.56970794]
[1680496284640,1.48318188,1776.0,1775.9,2.56970794]
[1680496284838,1.48318188,1776.0,1775.9,1.72670794]
[1680496285540,0.89415792,1776.0,1775.9,1.72670794]
[1680496286739,1.4831283,1776.0,1775.9,1.72670794]
[1680496287637,0.59897038,1776.0,1775.9,1.72670794]
[1680496296244,0.59897038,1776.0,1775.9,1.72633863]
[1680496307453,0.59897038,1776.0,1775.9,0.841]
[1680496307953,0.59897038,1776.0,1775.9,2.02195586]
[1680496308346,0.59897038,1776.0,1775.9,0.841]
[1680496309253,0.59897038,1776.0,1775.9,2.02195586]
[1680496311455,0.01,1776.0,1775.9,2.43707531]
[1680496311652,0.59897038,1776.0,1775.9,2.02195586]
[1680496320662,0.59897038,1776.0,1775.9,2.43727857]
[1680496321164,0.59897038,1776.0,1775.9,2.43727651]
[1680496324679,0.59897038,1776.0,1775.9,3.57651595]
[1680496324871,0.59897038,1776.0,1775.9,4.57651595]
[1680496325573,0.59897038,1776.0,1775.9,3.57651595]
[1680496326571,0.59897038,1776.0,1775.9,4.57651595]
[1680496327170,0.59897038,1776.0,1775.9,3.57651595]
[1680496337482,0.59897038,1776.0,1775.9,3.28155488]
[1680496344799,0.59897038,1776.0,1775.9,2.44055488]
[1680496347996,0.59897038,1776.0,1775.9,1.25932065]
[1680496348602,0.59897038,1776.0,1775.9,2.44073068]
[1680496348902,0.59897038,1776.0,1775.9,2.44077341]
[1680496350003,0.59897038,1776.0,1775.9,1.25932065]
[1680496352108,0.59897038,1776.0,1775.9,2.73551595]
[1680496352302,0.59897038,1776.0,1775.9,1.25932065]
[1680496352800,0.59897038,1776.0,1775.9,2.73551595]
[1680496362013,0.59897038,1776.0,1775.9,3.57851595]
[1680496369414,1.4831283,1776.0,1775.9,1.25332065]
[1680496369621,0.01,1776.0,1775.9,2.01977899]
[1680496369911,0.07459708,1776.0,1775.9,2.01977899]